[Event "Denmark Team Championship 2022"]
[Site "Denmark"]
[Date "2022.10.30"]
[Round "2.7"]
[White "Pedersen, Henrik Dahl"]
[Black "Brondt, Nicolai Kvist"]
[Result "1/2-1/2"]
[ECO "B47"]
[WhiteElo "2233"]
[BlackElo "2248"]
[Annotator "ChessBase"]
[PlyCount "54"]
[EventDate "2022.10.29"]
[EventType "team-tourn"]
[EventCountry "DEN"]
[SourceTitle "playchess.com"]
[Source "ChessBase"]
[SourceQuality "1"]
[TimeControl "40/5400+30:1800+30"]

1. e4 {[%emt 0:00:04]} c5 {[%emt 0:00:14]} 2. Nf3 {[%emt 0:00:09]} e6 {[%emt 0:00:01]} 3. d4 {[%emt 0:00:13]} cxd4 {[%emt 0:00:03]} 4. Nxd4 {[%emt 0:00:08]} Nc6 {[%emt 0:00:02]} 5. Nc3 {[%emt 0:01:02]} Qc7 {[%emt 0:00:37]} 6. Be2 {[%emt 0:00:40]} a6 {[%emt 0:01:21]} 7. O-O {[%emt 0:00:48]} Nf6 {[%emt 0:02:00]} 8. Be3 {[%emt 0:01:34]} Be7 {[%emt 0:03:17]} 9. f4 {[%emt 0:06:27]} d6 {[%emt 0:01:02]} 10. Nxc6 {[%emt 0:08:54]} bxc6 {[%emt 0:02:12]} 11. Bf3 {[%emt 0:00:11]} O-O {[%emt 0:02:56]} 12. g4 {[%emt 0:06:53]} d5 {[%emt 0:04:06]} 13. Qd2 {[%emt 0:04:21]} Rd8 {[%emt 0:11:56]} 14. Qf2 {[%emt 0:03:28]} c5 {[%emt 0:15:13]} 15. g5 {[%emt 0:05:20]} Nxe4 {[%emt 0:02:57]} 16. Nxe4 {[%emt 0:01:12]} dxe4 {[%emt 0:00:03]} 17. Bxe4 {[%emt 0:00:12]} Bb7 {[%emt 0:03:06]} 18. Qf3 {[%emt 0:05:31]} Bxe4 {[%emt 0:06:48]} 19. Qxe4 {[%emt 0:00:06]} g6 {[%emt 0:00:19]} 20. Rad1 {[%emt 0:07:36]} Bf8 {[%emt 0:03:06]} 21. Qc4 {[%emt 0:12:58]} Qc6 {[%emt 0:03:04]} 22. Kf2 {[%emt 0:05:00]} Rd5 {[%emt 0:02:19]} 23. Rd3 {[%emt 0:00:14]} Qb5 {[%emt 0:07:56]} 24. b3 {[%emt 0:02:17]} Qb7 {[%emt 0:07:08]} 25. Rfd1 {[%emt 0:02:17]} Rad8 {[%emt 0:01:24]} 26. Qe4 {[%emt 0:01:14]} Qd7 {[%emt 0:01:45]} 27. Ke2 {[%emt 0:03:21]} Be7 {[%emt 0:06:56]} 1/2-1/2

[Event "Denmark Team Championship 2022"]
[Site "Denmark"]
[Date "2022.10.30"]
[Round "2.7"]
[White "Brorsen, Jacob Abildlund"]
[Black "Bromann, Thorbjorn"]
[Result "0-1"]
[ECO "E11"]
[WhiteElo "2201"]
[BlackElo "2374"]
[Annotator "ChessBase"]
[PlyCount "86"]
[EventDate "2022.10.29"]
[EventType "team-tourn"]
[EventCountry "DEN"]
[SourceTitle "playchess.com"]
[Source "ChessBase"]
[SourceQuality "1"]
[TimeControl "40/5400+30:1800+30"]

1. d4 {[%emt 0:00:07]} e6 {[%emt 0:00:17]} 2. Nf3 {[%emt 0:00:14]} Nf6 {[%emt 0:00:24]} 3. c4 {[%emt 0:00:17]} Bb4+ {[%emt 0:00:06]} 4. Nbd2 {[%emt 0:00:44]} d5 {[%emt 0:03:55]} 5. e3 {[%emt 0:02:26]} O-O {[%emt 0:00:24]} 6. Qc2 {[%emt 0:02:22]} b6 {[%emt 0:05:50]} 7. a3 {[%emt 0:02:57]} Be7 {[%emt 0:01:30]} 8. Bd3 {[%emt 0:00:34]} Nbd7 {[%emt 0:06:43]} 9. O-O {[%emt 0:09:04]} dxc4 {[%emt 0:14:08]} 10. Nxc4 {[%emt 0:02:46]} c5 {[%emt 0:00:14]} 11. Nce5 {[%emt 0:03:46]} Bb7 {[%emt 0:02:34]} 12. Ng5 {[%emt 0:13:39]} g6 {[%emt 0:08:04]} 13. Nxg6 {[%emt 0:05:43]} hxg6 {[%emt 0:03:38]} 14. Bxg6 {[%emt 0:00:37]} Qc8 {[%emt 0:10:11]} 15. d5 {[%emt 0:29:37]} Bxd5 {[%emt 0:20:12]} 16. f4 {[%emt 0:02:47]} Qa6 {[%emt 0:09:42]} 17. b3 {[%emt 0:05:31]} Qb5 {[%emt 0:02:09]} 18. Rb1 {[%emt 0:01:01]} c4 {[%emt 0:01:08]} 19. b4 {[%emt 0:00:29]} c3 {[%emt 0:00:19]} 20. Bd3 {[%emt 0:07:45]} Bc4 {[%emt 0:01:37]} 21. Bh7+ {[%emt 0:00:06]} Kg7 {[%emt 0:01:22]} 22. Rf3 {[%emt 0:00:09]} Rh8 {[%emt 0:01:30]} 23. Rg3 {[%emt 0:03:06]} Kf8 {[%emt 0:00:52]} 24. Qxc3 {[%emt 0:00:16]} Ba2 {[%emt 0:01:37]} 25. Bd3 {[%emt 0:01:09]} Qa4 {[%emt 0:00:38]} 26. Bc2 {[%emt 0:00:30]} Qa6 {[%emt 0:00:35]} 27. Nh7+ {[%emt 0:02:15]} Rxh7 {[%emt 0:00:52]} 28. Bxh7 {[%emt 0:00:23]} Rc8 {[%emt 0:01:59]} 29. Qb2 {[%emt 0:01:50]} Bxb1 {[%emt 0:01:12]} 30. Bxb1 {[%emt 0:00:01]} Qc4 {[%emt 0:01:01]} 31. Bd2 {[%emt 0:00:14]} Ke8 {[%emt 0:00:33]} 32. Qd4 {[%emt 0:02:54]} Qb3 {[%emt 0:00:34]} 33. Bd3 {[%emt 0:00:49]} Qd1+ {[%emt 0:00:31]} 34. Bf1 {[%emt 0:00:08]} Rc2 {[%emt 0:00:33]} 35. Bc3 {[%emt 0:00:11]} Qc1 {[%emt 0:00:34]} 36. Ba1 {[%emt 0:01:19]} Ra2 {[%emt 0:00:25]} 37. Bc3 {[%emt 0:00:09]} Rc2 {[%emt 0:00:07]} 38. e4 {[%emt 0:00:26]} Qxf4 {[%emt 0:00:42]} 39. Rf3 {[%emt 0:01:07]} Qxe4 {[%emt 0:00:38]} 40. Qd1 {[%emt 0:00:21]} Ra2 {[%emt 0:00:36]} 41. Qb3 {[%emt 0:08:38]} Rc2 {[%emt 0:06:09]} 42. Bd3 {[%emt 0:00:21]} Rc1+ {[%emt 0:00:35]} 43. Kf2 {[%emt 0:00:05]} Qh4+ {[%emt 0:01:07]} 0-1

[Event "Denmark Team Championship 2022"]
[Site "Denmark"]
[Date "2022.10.30"]
[Round "2.7"]
[White "Hoiberg, Nina"]
[Black "Simonsen, Carsten"]
[Result "1/2-1/2"]
[ECO "B90"]
[WhiteElo "2144"]
[BlackElo "2234"]
[Annotator "ChessBase"]
[PlyCount "179"]
[EventDate "2022.10.29"]
[EventType "team-tourn"]
[EventCountry "DEN"]
[SourceTitle "playchess.com"]
[Source "ChessBase"]
[SourceQuality "1"]
[TimeControl "40/5400+30:1800+30"]

1. e4 {[%emt 0:00:04]} c5 {[%emt 0:00:07]} 2. Nf3 {[%emt 0:00:22]} d6 {[%emt 0:00:07]} 3. Nc3 {[%emt 0:00:11]} Nf6 {[%emt 0:00:20]} 4. d4 {[%emt 0:02:19]} cxd4 {[%emt 0:00:06]} 5. Nxd4 {[%emt 0:00:05]} a6 {[%emt 0:00:08]} 6. Bd3 {[%emt 0:02:02]} e5 {[%emt 0:00:18]} 7. Nf3 {[%emt 0:02:59]} Be7 {[%emt 0:03:19]} 8. h3 {[%emt 0:00:30]} b5 {[%emt 0:03:55]} 9. Bg5 {[%emt 0:03:49]} Be6 {[%emt 0:03:58]} 10. Qd2 {[%emt 0:10:07]} Nbd7 {[%emt 0:04:52]} 11. O-O {[%emt 0:05:19]} Nc5 {[%emt 0:08:55]} 12. a4 {[%emt 0:08:01]} b4 {[%emt 0:03:48]} 13. Bxf6 {[%emt 0:01:52]} Bxf6 {[%emt 0:01:11]} 14. Ne2 {[%emt 0:03:59]} Rb8 {[%emt 0:04:41]} 15. Ng3 {[%emt 0:04:31]} g6 {[%emt 0:02:02]} 16. Rfd1 {[%emt 0:01:56]} O-O {[%emt 0:01:28]} 17. Qe2 {[%emt 0:08:27]} Qc8 {[%emt 0:09:30]} 18. Bc4 {[%emt 0:02:29]} Qc6 {[%emt 0:00:34]} 19. a5 {[%emt 0:08:59]} Kg7 {[%emt 0:03:57]} 20. Bd5 {[%emt 0:02:25]} Bxd5 {[%emt 0:01:05]} 21. Rxd5 {[%emt 0:01:31]} Ne6 {[%emt 0:01:55]} 22. Qd2 {[%emt 0:01:34]} Be7 {[%emt 0:00:17]} 23. Rd1 {[%emt 0:06:30]} Rfd8 {[%emt 0:03:45]} 24. Rd3 {[%emt 0:07:53]} Nf4 {[%emt 0:02:55]} 25. Rb3 {[%emt 0:00:15]} Qc4 {[%emt 0:02:07]} 26. Ne1 {[%emt 0:07:44]} Bg5 {[%emt 0:04:17]} 27. Kh2 {[%emt 0:01:23]} Nxh3 {[%emt 0:02:37]} 28. Qd3 {[%emt 0:00:12]} Qxd3 {[%emt 0:00:34]} 29. Nxd3 {[%emt 0:00:06]} Nf4 {[%emt 0:00:53]} 30. Nxb4 {[%emt 0:00:23]} Rb5 {[%emt 0:08:20]} 31. c4 {[%emt 0:00:36]} Rc5 {[%emt 0:00:46]} 32. Rc3 {[%emt 0:01:23]} Be7 {[%emt 0:02:30]} 33. Nd5 {[%emt 0:01:02]} Nxd5 {[%emt 0:00:20]} 34. Rxd5 {[%emt 0:00:05]} Rb8 {[%emt 0:00:42]} 35. b3 {[%emt 0:02:02]} Rxd5 {[%emt 0:06:43]} 36. cxd5 {[%emt 0:00:13]} Rb5 {[%emt 0:00:56]} 37. b4 {[%emt 0:00:16]} Rxb4 {[%emt 0:00:15]} 38. Rc6 {[%emt 0:00:05]} h5 {[%emt 0:06:30]} 39. f3 {[%emt 0:00:52]} Ra4 {[%emt 0:02:38]} 40. Rxa6 {[%emt 0:00:16]} Bg5 {[%emt 0:00:53]} 41. Rxd6 {[%emt 0:12:34]} Rxa5 {[%emt 0:00:57]} 42. Rc6 {[%emt 0:05:38]} Bf4 {[%emt 0:01:07]} 43. Kh3 {[%emt 0:00:59]} Ra1 {[%emt 0:00:40]} 44. Rc2 {[%emt 0:01:29]} Rd1 {[%emt 0:05:00]} 45. Rf2 {[%emt 0:01:00]} Kh6 {[%emt 0:02:24]} 46. Rf1 {[%emt 0:01:02]} Rd2 {[%emt 0:00:18]} 47. Re1 {[%emt 0:03:40]} Kg5 {[%emt 0:03:02]} 48. Ne2 {[%emt 0:01:35]} Be3 {[%emt 0:00:24]} 49. Nc3 {[%emt 0:02:46]} Bd4 {[%emt 0:04:10]} 50. Nb5 {[%emt 0:01:37]} Kf4 {[%emt 0:03:30]} 51. Nxd4 {[%emt 0:00:53]} Rxd4 {[%emt 0:00:14]} 52. Ra1 {[%emt 0:04:31]} f5 {[%emt 0:00:53]} 53. Re1 {[%emt 0:00:07]} Rd2 {[%emt 0:02:37]} 54. g3+ {[%emt 0:02:05]} Kg5 {[%emt 0:02:04]} 55. exf5 {[%emt 0:01:01]} Kxf5 {[%emt 0:00:16]} 56. g4+ {[%emt 0:00:05]} hxg4+ {[%emt 0:00:57]} 57. fxg4+ {[%emt 0:00:39]} Kf4 {[%emt 0:00:25]} 58. Rf1+ {[%emt 0:01:10]} Kg5 {[%emt 0:00:14]} 59. Re1 {[%emt 0:00:45]} Rxd5 {[%emt 0:00:29]} 60. Re4 {[%emt 0:00:09]} Rd3+ {[%emt 0:00:55]} 61. Kg2 {[%emt 0:00:05]} Kf6 {[%emt 0:00:13]} 62. Re2 {[%emt 0:00:29]} Ke6 {[%emt 0:01:54]} 63. Ra2 {[%emt 0:00:51]} Rd6 {[%emt 0:03:07]} 64. Kf3 {[%emt 0:00:21]} Rb6 {[%emt 0:00:42]} 65. Ra3 {[%emt 0:01:01]} Kf6 {[%emt 0:00:25]} 66. Ra4 {[%emt 0:00:44]} Rd6 {[%emt 0:00:21]} 67. Re4 {[%emt 0:00:48]} Rd3+ {[%emt 0:00:15]} 68. Kf2 {[%emt 0:00:55]} Rd4 {[%emt 0:00:07]} 69. g5+ {[%emt 0:00:17]} Kf5 {[%emt 0:00:09]} 70. Re1 {[%emt 0:00:24]} Rg4 {[%emt 0:00:13]} 71. Ra1 {[%emt 0:00:40]} Rxg5 {[%emt 0:00:20]} 72. Ra8 {[%emt 0:00:14]} Rh5 {[%emt 0:00:26]} 73. Rf8+ {[%emt 0:00:14]} Ke4 {[%emt 0:00:20]} 74. Rg8 {[%emt 0:00:21]} Rf5+ {[%emt 0:00:11]} 75. Kg3 {[%emt 0:00:53]} Rf6 {[%emt 0:00:24]} 76. Kg4 {[%emt 0:00:20]} Ke3 {[%emt 0:00:41]} 77. Ra8 {[%emt 0:00:14]} Rd6 {[%emt 0:00:53]} 78. Ra3+ {[%emt 0:00:33]} Rd3 {[%emt 0:01:20]} 79. Ra6 {[%emt 0:00:14]} e4 {[%emt 0:01:23]} 80. Rxg6 {[%emt 0:00:14]} Kf2 {[%emt 0:00:49]} 81. Rh6 {[%emt 0:00:34]} Rf3 {[%emt 0:01:28]} 82. Rh2+ {[%emt 0:00:31]} Ke3 {[%emt 0:00:12]} 83. Ra2 {[%emt 0:00:25]} Rf8 {[%emt 0:05:00]} 84. Ra3+ {[%emt 0:00:15]} Kf2 {[%emt 0:00:26]} 85. Ra2+ {[%emt 0:00:11]} Kf1 {[%emt 0:00:08]} 86. Ra1+ {[%emt 0:00:22]} Kg2 {[%emt 0:00:20]} 87. Re1 {[%emt 0:00:20]} Re8 {[%emt 0:00:38]} 88. Kf4 {[%emt 0:00:07]} Kf2 {[%emt 0:00:12]} 89. Rxe4 {[%emt 0:00:08]} Rxe4+ {[%emt 0:00:03]} 90. Kxe4 1/2-1/2

[Event "Denmark Team Championship 2022"]
[Site "Denmark"]
[Date "2022.10.30"]
[Round "2.7"]
[White "Jaksland, Tim"]
[Black "Pedersen, Finn"]
[Result "1/2-1/2"]
[ECO "D02"]
[WhiteElo "2100"]
[BlackElo "2266"]
[Annotator "ChessBase"]
[PlyCount "187"]
[EventDate "2022.10.29"]
[EventType "team-tourn"]
[EventCountry "DEN"]
[SourceTitle "playchess.com"]
[Source "ChessBase"]
[SourceQuality "1"]
[TimeControl "40/5400+30:1800+30"]

1. d4 {[%emt 0:00:06]} d5 {[%emt 0:00:11]} 2. Nf3 {[%emt 0:00:07]} c6 {[%emt 0:00:16]} 3. Bf4 {[%emt 0:00:16]} Bf5 {[%emt 0:01:21]} 4. e3 {[%emt 0:00:32]} e6 {[%emt 0:00:15]} 5. Nbd2 {[%emt 0:14:08]} Bd6 {[%emt 0:01:11]} 6. Bxd6 {[%emt 0:09:05]} Qxd6 {[%emt 0:00:15]} 7. c4 {[%emt 0:04:42]} Nd7 {[%emt 0:02:16]} 8. Be2 {[%emt 0:01:59]} h6 {[%emt 0:01:42]} 9. Qb3 {[%emt 0:05:33]} Rb8 {[%emt 0:02:06]} 10. Bd3 {[%emt 0:06:13]} Bxd3 {[%emt 0:01:32]} 11. Qxd3 {[%emt 0:01:21]} Ngf6 {[%emt 0:00:52]} 12. O-O {[%emt 0:01:52]} O-O {[%emt 0:00:14]} 13. e4 {[%emt 0:03:29]} dxe4 {[%emt 0:01:26]} 14. Nxe4 {[%emt 0:01:10]} Nxe4 {[%emt 0:01:40]} 15. Qxe4 {[%emt 0:00:13]} Rfd8 {[%emt 0:00:53]} 16. Rfd1 {[%emt 0:09:20]} Qb4 {[%emt 0:07:22]} 17. b3 {[%emt 0:05:10]} a5 {[%emt 0:01:39]} 18. Qe1 {[%emt 0:05:06]} Qxe1+ {[%emt 0:03:32]} 19. Rxe1 {[%emt 0:00:30]} b5 {[%emt 0:02:40]} 20. Rac1 {[%emt 0:03:53]} Rbc8 {[%emt 0:02:34]} 21. Kf1 {[%emt 0:02:54]} Kf8 {[%emt 0:02:09]} 22. Red1 {[%emt 0:03:25]} Nb6 {[%emt 0:04:47]} 23. Ke2 {[%emt 0:04:09]} bxc4 {[%emt 0:03:04]} 24. bxc4 {[%emt 0:00:07]} c5 {[%emt 0:01:29]} 25. Rc2 {[%emt 0:06:17]} cxd4 {[%emt 0:03:14]} 26. Nxd4 {[%emt 0:00:18]} Ke7 {[%emt 0:06:33]} 27. c5 {[%emt 0:04:26]} Nd5 {[%emt 0:00:45]} 28. g3 {[%emt 0:01:26]} Nb4 {[%emt 0:13:27]} 29. Rc4 {[%emt 0:00:44]} Rd5 {[%emt 0:05:45]} 30. Nb3 {[%emt 0:01:52]} Nxa2 {[%emt 0:01:35]} 31. Ra1 {[%emt 0:02:40]} Nb4 {[%emt 0:06:51]} 32. Rxa5 {[%emt 0:00:22]} Nc6 {[%emt 0:01:12]} 33. Ra2 {[%emt 0:00:55]} Rb8 {[%emt 0:00:44]} 34. Nd2 {[%emt 0:00:59]} Rb5 {[%emt 0:00:50]} 35. Ne4 {[%emt 0:01:23]} f5 {[%emt 0:01:54]} 36. Nd2 {[%emt 0:00:39]} Rbxc5 {[%emt 0:00:52]} 37. Rxc5 {[%emt 0:00:14]} Rxc5 {[%emt 0:00:06]} 38. Rb2 {[%emt 0:00:21]} Kf6 {[%emt 0:01:12]} 39. Ra2 {[%emt 0:00:25]} Nb4 {[%emt 0:02:46]} 40. Rb2 {[%emt 0:01:08]} Nd5 {[%emt 0:00:12]} 41. Kd3 {[%emt 0:02:02]} Rc1 {[%emt 0:03:46]} 42. h4 {[%emt 0:03:18]} e5 {[%emt 0:04:20]} 43. Rb1 {[%emt 0:17:33]} Rc3+ {[%emt 0:00:51]} 44. Ke2 {[%emt 0:00:05]} e4 {[%emt 0:00:32]} 45. Rb7 {[%emt 0:01:31]} Rd3 {[%emt 0:07:15]} 46. Nc4 {[%emt 0:02:15]} f4 {[%emt 0:02:27]} 47. gxf4 {[%emt 0:00:51]} Nxf4+ {[%emt 0:00:09]} 48. Ke1 {[%emt 0:00:02]} Ng2+ {[%emt 0:06:40]} 49. Ke2 {[%emt 0:00:05]} Rd4 {[%emt 0:03:55]} 50. Rb6+ {[%emt 0:04:47]} Ke7 {[%emt 0:03:57]} 51. Ne5 {[%emt 0:00:29]} Rd5 {[%emt 0:01:54]} 52. Ng6+ {[%emt 0:01:49]} Kf7 {[%emt 0:01:04]} 53. Nh8+ {[%emt 0:00:27]} Kg8 {[%emt 0:01:25]} 54. Ng6 {[%emt 0:00:04]} Rh5 {[%emt 0:01:25]} 55. Rb4 {[%emt 0:01:50]} Nxh4 {[%emt 0:00:52]} 56. Ne7+ {[%emt 0:00:25]} Kf7 {[%emt 0:00:26]} 57. Rxe4 {[%emt 0:00:02]} Ng6 {[%emt 0:02:53]} 58. Nxg6 {[%emt 0:00:59]} Kxg6 {[%emt 0:00:07]} 59. Kf3 {[%emt 0:00:11]} Rg5 {[%emt 0:00:11]} 60. Rh4 {[%emt 0:00:49]} h5 {[%emt 0:00:16]} 61. Rh1 {[%emt 0:00:28]} Kh6 {[%emt 0:00:27]} 62. Ra1 {[%emt 0:00:14]} h4 {[%emt 0:00:54]} 63. Ra4 {[%emt 0:01:15]} Kh5 {[%emt 0:00:21]} 64. Ra8 {[%emt 0:00:20]} Rg1 {[%emt 0:02:16]} 65. Rh8+ {[%emt 0:00:44]} Kg5 {[%emt 0:00:15]} 66. Rh7 {[%emt 0:00:04]} g6 {[%emt 0:00:13]} 67. Rh8 {[%emt 0:00:07]} Rg4 {[%emt 0:02:01]} 68. Rh7 {[%emt 0:00:24]} Rf4+ {[%emt 0:00:32]} 69. Kg2 {[%emt 0:00:04]} Kg4 {[%emt 0:00:18]} 70. Ra7 {[%emt 0:00:19]} h3+ {[%emt 0:02:06]} 71. Kg1 {[%emt 0:00:07]} g5 {[%emt 0:01:09]} 72. Ra2 {[%emt 0:01:18]} Kh4 {[%emt 0:00:21]} 73. Rb2 {[%emt 0:00:36]} Rg4+ {[%emt 0:00:21]} 74. Kh1 {[%emt 0:00:59]} Rg2 {[%emt 0:00:06]} 75. Rb4+ {[%emt 0:00:51]} Kh5 {[%emt 0:00:40]} 76. Rb2 {[%emt 0:00:36]} Kg4 {[%emt 0:01:57]} 77. Rb4+ {[%emt 0:00:47]} Kf3 {[%emt 0:00:13]} 78. Rb3+ {[%emt 0:00:34]} Kxf2 {[%emt 0:02:06]} 79. Rb2+ {[%emt 0:00:24]} Kf3 {[%emt 0:01:45]} 80. Rb3+ {[%emt 0:00:05]} Kg4 {[%emt 0:01:58]} 81. Rb4+ {[%emt 0:00:06]} Kf5 {[%emt 0:01:01]} 82. Rf4+ {[%emt 0:01:09]} Kg6 {[%emt 0:00:10]} 83. Rf6+ {[%emt 0:00:09]} Kh5 {[%emt 0:00:11]} 84. Rh6+ {[%emt 0:00:04]} Kg4 {[%emt 0:00:09]} 85. Rh4+ {[%emt 0:00:06]} Kf3 {[%emt 0:00:20]} 86. Rf4+ {[%emt 0:01:01]} Ke2 {[%emt 0:00:45]} 87. Re4+ {[%emt 0:00:05]} Kd1 {[%emt 0:00:27]} 88. Re1+ {[%emt 0:01:08]} Kd2 {[%emt 0:00:16]} 89. Rd1+ {[%emt 0:00:05]} Ke2 {[%emt 0:01:09]} 90. Re1+ {[%emt 0:00:52]} Kf3 {[%emt 0:00:57]} 91. Re3+ {[%emt 0:00:13]} Kg4 {[%emt 0:00:16]} 92. Re4+ {[%emt 0:00:06]} Kh5 {[%emt 0:01:14]} 93. Rh4+ {[%emt 0:00:12]} Kg6 {[%emt 0:00:04]} 94. Rh6+ {[%emt 0:00:29]} 1/2-1/2

[Event "Denmark Team Championship 2022"]
[Site "Denmark"]
[Date "2022.10.30"]
[Round "2.8"]
[White "Palm, Nikolaj"]
[Black "Haubro, Sigfred"]
[Result "0-1"]
[ECO "D31"]
[WhiteElo "2308"]
[BlackElo "2215"]
[Annotator "ChessBase"]
[PlyCount "70"]
[EventDate "2022.10.29"]
[EventType "team-tourn"]
[EventCountry "DEN"]
[SourceTitle "playchess.com"]
[Source "ChessBase"]
[SourceQuality "1"]
[TimeControl "40/5400+30:1800+30"]

1. d4 d5 {[%emt 0:00:06]} 2. c4 {[%emt 0:00:18]} e6 {[%emt 0:00:12]} 3. Nc3 {[%emt 0:00:19]} f5 {[%emt 0:00:42]} 4. Nf3 {[%emt 0:00:29]} Nf6 {[%emt 0:00:09]} 5. Bg5 {[%emt 0:00:20]} Be7 6. e3 {[%emt 0:00:14]} O-O {[%emt 0:01:28]} 7. Bd3 c6 {[%emt 0:03:37]} 8. Qc2 {[%emt 0:06:37]} a5 {[%emt 0:07:21]} 9. O-O Ne4 {[%emt 0:01:07]} 10. Bxe7 {[%emt 0:12:40]} Qxe7 {[%emt 0:03:32]} 11. a3 Nd7 {[%emt 0:05:59]} 12. Rac1 {[%emt 0:17:57]} Kh8 {[%emt 0:04:57]} 13. Rfe1 {[%emt 0:15:58]} g5 14. Nd2 {[%emt 0:01:46]} Qg7 {[%emt 0:06:57]} 15. f3 {[%emt 0:00:35]} Nxc3 {[%emt 0:06:49]} 16. bxc3 {[%emt 0:07:41]} Nf6 {[%emt 0:04:50]} 17. Rb1 {[%emt 0:10:53]} h5 {[%emt 0:04:16]} 18. e4 {[%emt 0:01:50]} dxc4 {[%emt 0:00:49]} 19. Nxc4 {[%emt 0:06:40]} f4 {[%emt 0:04:23]} 20. Re2 b5 {[%emt 0:00:11]} 21. Ne5 {[%emt 0:00:56]} Bd7 {[%emt 0:07:20]} 22. c4 {[%emt 0:05:33]} Rfc8 {[%emt 0:10:43]} 23. Qd1 Rc7 {[%emt 0:00:09]} 24. cxb5 {[%emt 0:01:59]} cxb5 {[%emt 0:00:39]} 25. Nxd7 {[%emt 0:00:17]} Qxd7 {[%emt 0:00:45]} 26. Bxb5 {[%emt 0:05:33]} Qe7 27. Rc1 {[%emt 0:00:03]} Rac8 {[%emt 0:02:00]} 28. Rxc7 {[%emt 0:01:44]} Rxc7 29. a4 {[%emt 0:00:03]} Qa3 {[%emt 0:07:44]} 30. Re1 {[%emt 0:03:57]} g4 {[%emt 0:05:42]} 31. fxg4 {[%emt 0:01:06]} hxg4 {[%emt 0:01:20]} 32. Qd2 {[%emt 0:00:05]} f3 {[%emt 0:01:54]} 33. e5 {[%emt 0:00:22]} Nd5 {[%emt 0:01:33]} 34. Bd3 Rf7 {[%emt 0:00:17]} 35. Rf1 {[%emt 0:01:06]} Nf4 0-1

[Event "Denmark Team Championship 2022"]
[Site "Denmark"]
[Date "2022.10.30"]
[Round "2.8"]
[White "Berg, Klaus"]
[Black "Meskenas, Paulius"]
[Result "1/2-1/2"]
[ECO "A35"]
[WhiteElo "2278"]
[BlackElo "2038"]
[Annotator "ChessBase"]
[PlyCount "108"]
[EventDate "2022.10.29"]
[EventType "team-tourn"]
[EventCountry "DEN"]
[SourceTitle "playchess.com"]
[Source "ChessBase"]
[SourceQuality "1"]
[TimeControl "40/5400+30:1800+30"]

1. c4 {[%emt 0:00:11]} c5 {[%emt 0:00:04]} 2. Nc3 {[%emt 0:04:34]} Nc6 {[%emt 0:00:19]} 3. Nf3 {[%emt 0:00:36]} Nf6 {[%emt 0:00:40]} 4. e3 {[%emt 0:00:44]} g6 {[%emt 0:00:10]} 5. d4 {[%emt 0:00:09]} cxd4 {[%emt 0:00:08]} 6. Nxd4 {[%emt 0:00:09]} Bg7 {[%emt 0:01:23]} 7. Be2 {[%emt 0:00:06]} O-O {[%emt 0:00:14]} 8. O-O {[%emt 0:00:04]} d5 {[%emt 0:00:16]} 9. cxd5 {[%emt 0:04:13]} Nxd5 {[%emt 0:00:41]} 10. Nxd5 {[%emt 0:03:51]} Qxd5 {[%emt 0:00:27]} 11. Bf3 {[%emt 0:00:31]} Qd7 {[%emt 0:05:30]} 12. Nxc6 {[%emt 0:02:41]} bxc6 {[%emt 0:00:07]} 13. Qc2 {[%emt 0:04:15]} Bb7 {[%emt 0:00:08]} 14. Rd1 {[%emt 0:06:40]} Qc7 {[%emt 0:06:04]} 15. Bd2 {[%emt 0:00:59]} c5 {[%emt 0:09:41]} 16. Bxb7 {[%emt 0:00:05]} Qxb7 {[%emt 0:00:10]} 17. Bc3 {[%emt 0:00:25]} Rfd8 {[%emt 0:06:14]} 18. Bxg7 {[%emt 0:07:58]} Kxg7 {[%emt 0:00:33]} 19. b3 {[%emt 0:00:50]} Qc7 {[%emt 0:02:42]} 20. Qc3+ {[%emt 0:05:13]} Kg8 {[%emt 0:00:09]} 21. h3 {[%emt 0:05:40]} Rac8 {[%emt 0:03:07]} 22. Rxd8+ {[%emt 0:05:58]} Qxd8 {[%emt 0:03:26]} 23. Rc1 {[%emt 0:00:09]} Qd6 {[%emt 0:00:36]} 24. Qb2 {[%emt 0:08:37]} Rc6 {[%emt 0:01:21]} 25. Qe2 {[%emt 0:02:47]} Kg7 {[%emt 0:04:43]} 26. Rc4 {[%emt 0:04:51]} a5 {[%emt 0:04:38]} 27. Qe1 {[%emt 0:02:43]} Qc7 {[%emt 0:00:23]} 28. Ra4 {[%emt 0:01:06]} Ra6 {[%emt 0:02:40]} 29. Qc3+ {[%emt 0:01:11]} Kg8 {[%emt 0:00:23]} 30. g3 {[%emt 0:01:45]} h5 {[%emt 0:03:11]} 31. h4 {[%emt 0:00:30]} Qd6 {[%emt 0:18:55]} 32. Rc4 {[%emt 0:03:06]} Qd1+ {[%emt 0:01:37]} 33. Kg2 {[%emt 0:02:44]} Rf6 {[%emt 0:02:02]} 34. Rf4 {[%emt 0:01:02]} Rxf4 {[%emt 0:00:41]} 35. exf4 {[%emt 0:00:02]} Qd5+ {[%emt 0:01:08]} 36. Kh2 {[%emt 0:03:50]} a4 {[%emt 0:00:36]} 37. bxa4 {[%emt 0:00:40]} Qxa2 {[%emt 0:00:10]} 38. Qxc5 {[%emt 0:00:19]} Qxa4 {[%emt 0:00:21]} 39. Qxe7 {[%emt 0:00:39]} Qa2 {[%emt 0:00:08]} 40. Qc5 {[%emt 0:06:12]} Qb1 {[%emt 0:03:45]} 41. Qd5 {[%emt 0:39:36]} Qb6 {[%emt 0:35:16]} 42. Kg2 {[%emt 0:00:07]} Qf6 {[%emt 0:00:11]} 43. f5 {[%emt 0:00:00]} gxf5 {[%emt 0:00:00]} 44. Kf3 {[%emt 0:00:00]} Qg6 {[%emt 0:00:00]} 45. Kf4 {[%emt 0:00:00]} Qg4+ {[%emt 0:00:00]} 46. Ke5 {[%emt 0:00:00]} Kg7 {[%emt 0:00:00]} 47. Qd4 {[%emt 0:00:00]} Qf3 {[%emt 0:00:00]} 48. Qe3 {[%emt 0:00:00]} Qxe3+ {[%emt 0:00:00]} 49. fxe3 {[%emt 0:00:00]} Kg6 {[%emt 0:00:00]} 50. Kd5 {[%emt 0:02:30]} Kh7 {[%emt 0:00:00]} 51. e4 {[%emt 0:00:37]} fxe4 {[%emt 0:00:00]} 52. Kxe4 {[%emt 0:00:01]} Kg6 {[%emt 0:00:00]} 53. Ke5 {[%emt 0:00:11]} f6+ {[%emt 0:00:00]} 54. Ke6 {[%emt 0:00:15]} Kg7 {[%emt 0:00:00]} 1/2-1/2

[Event "Denmark Team Championship 2022"]
[Site "Denmark"]
[Date "2022.10.30"]
[Round "2.8"]
[White "Sobjerg, Erik"]
[Black "Pedersen, Jan"]
[Result "1-0"]
[ECO "C24"]
[WhiteElo "2252"]
[BlackElo "2383"]
[Annotator "ChessBase"]
[PlyCount "55"]
[EventDate "2022.10.29"]
[EventType "team-tourn"]
[EventCountry "DEN"]
[SourceTitle "playchess.com"]
[Source "ChessBase"]
[SourceQuality "1"]
[TimeControl "40/5400+30:1800+30"]

1. e4 {[%emt 0:00:06]} e5 {[%emt 0:02:33]} 2. Bc4 {[%emt 0:04:41]} Nf6 {[%emt 0:02:20]} 3. d3 {[%emt 0:00:12]} Nc6 {[%emt 0:02:16]} 4. Nc3 {[%emt 0:00:36]} Bc5 {[%emt 0:01:36]} 5. f4 {[%emt 0:00:22]} exf4 {[%emt 0:01:55]} 6. Bxf4 {[%emt 0:02:42]} O-O {[%emt 0:03:12]} 7. Nf3 {[%emt 0:02:07]} d6 {[%emt 0:00:18]} 8. Bg5 {[%emt 0:12:23]} Be6 {[%emt 0:15:59]} 9. Nd5 {[%emt 0:02:26]} Bxd5 {[%emt 0:00:29]} 10. Bxd5 {[%emt 0:00:23]} h6 {[%emt 0:01:28]} 11. Bh4 {[%emt 0:05:20]} g5 {[%emt 0:05:17]} 12. Bxc6 {[%emt 0:03:47]} bxc6 {[%emt 0:09:31]} 13. Bg3 {[%emt 0:13:35]} Re8 {[%emt 0:01:08]} 14. Qd2 {[%emt 0:01:46]} Nh5 {[%emt 0:16:03]} 15. O-O-O {[%emt 0:03:03]} Qf6 {[%emt 0:13:44]} 16. Rdf1 {[%emt 0:14:16]} Qe6 {[%emt 0:04:47]} 17. Kb1 {[%emt 0:01:03]} Rab8 {[%emt 0:00:38]} 18. Bf2 {[%emt 0:02:41]} Bb4 {[%emt 0:05:22]} 19. Qd1 {[%emt 0:05:17]} Ba3 {[%emt 0:03:20]} 20. b3 {[%emt 0:00:21]} Ng7 {[%emt 0:03:23]} 21. Bxa7 {[%emt 0:02:20]} Ra8 {[%emt 0:00:33]} 22. Bd4 {[%emt 0:00:30]} c5 {[%emt 0:00:09]} 23. Ba1 {[%emt 0:02:13]} d5 {[%emt 0:04:09]} 24. exd5 {[%emt 0:02:14]} Qa6 {[%emt 0:00:17]} 25. Ne5 {[%emt 0:02:14]} Bb4 {[%emt 0:01:40]} 26. a4 {[%emt 0:00:24]} Reb8 {[%emt 0:00:37]} 27. Nc6 {[%emt 0:02:03]} Qxa4 {[%emt 0:00:38]} 28. bxa4 {[%emt 0:00:20]} 1-0